fUST/lending_fUST_20250817
["ID","MTS","AMOUNT","RATE_DAILY","PERIOD"]
[379664781,1755364257269,-480.0,0.00021917,3]
[379664783,1755364257278,-480.0,0.00021917,3]
[379664785,1755364257288,-343.46208725,0.00021917,3]
[379664786,1755364257298,-480.0,0.00021917,3]
[379664788,1755364257308,-460.0,0.00021917,3]
[379664790,1755364257317,-460.0,0.00021917,3]
[379664792,1755364257327,-460.0,0.00021917,3]
[379664794,1755364257337,-460.0,0.00021917,3]
[379664795,1755364257346,-480.0,0.00021917,3]
[379664797,1755364257355,-480.0,0.00021917,3]
[379664799,1755364257364,-480.0,0.00021917,3]
[379664801,1755364257374,-480.0,0.00021917,3]
[379664803,1755364257383,-480.0,0.00021917,3]
[379664804,1755364257393,-480.0,0.00021917,3]
[379664806,1755364257403,-480.0,0.00021917,3]
[379664808,1755364257411,-480.0,0.00021917,3]
[379664810,1755364257421,-480.0,0.00021917,3]
[379664811,1755364257430,-480.0,0.00021917,3]
[379664813,1755364257439,-480.0,0.00021917,3]
[379664815,1755364257448,-765.74,0.00021917,3]
[379664817,1755364257458,-480.0,0.00021917,3]
[379664819,1755364257467,-480.0,0.00021917,3]
[379664820,1755364257476,-480.0,0.00021917,3]
[379664822,1755364257486,-480.0,0.00021917,3]
[379664824,1755364257495,-500.0,0.00021917,3]
[379664826,1755364257503,-500.0,0.00021917,3]
[379664827,1755364257513,-500.0,0.00021917,3]
[379664829,1755364257522,-500.0,0.00021917,3]
[379664831,1755364257531,-500.0,0.00021917,3]
[379664833,1755364257540,-500.0,0.00021917,3]
[379664835,1755364257549,-500.0,0.00021917,3]
[379664836,1755364257559,-500.0,0.00021917,3]
[379664838,1755364257568,-500.0,0.00021917,3]
[379664840,1755364257577,-480.0,0.00021917,3]
[379664842,1755364257586,-500.0,0.00021917,3]
[379664844,1755364257595,-168.26462039,0.00021917,3]
[379664845,1755364257604,-480.0,0.00021917,3]
[379664847,1755364257613,-480.0,0.00021917,3]
[379664849,1755364257622,-480.0,0.00021917,3]
[379664851,1755364257630,-480.0,0.00021917,3]
[379664852,1755364257641,-490.05,0.00021917,3]
[379664854,1755364257651,-604.97760346,0.00021917,2]
[379664856,1755364257660,-315.71765939,0.00021917,3]
[379664858,1755364257669,-480.0,0.00021917,3]
[379664859,1755364257679,-340.0,0.00021917,3]
[379664861,1755364257688,-480.0,0.00021917,3]
[379664863,1755364257698,-480.0,0.00021917,3]
[379664865,1755364257707,-480.0,0.00021917,3]
[379664867,1755364257716,-480.0,0.00021917,3]
[379664868,1755364257725,-480.0,0.00021917,3]
[379664870,1755364257734,-480.0,0.00021917,3]
[379664872,1755364257743,-480.0,0.00021917,3]
[379664874,1755364257752,-480.0,0.00021917,3]
[379664875,1755364257761,-440.0,0.00021917,3]
[379664877,1755364257771,-460.0,0.00021917,3]
[379664879,1755364257780,-460.2436315,0.00021917,3]
[379664881,1755364257789,-1058.41,0.00021917,3]
[379664883,1755364257799,-480.0,0.00021917,3]
[379664884,1755364257810,-480.0,0.00021917,3]
[379664886,1755364257819,-480.0,0.00021917,3]
[379664888,1755364257828,-460.0,0.00021917,3]
[379664890,1755364257838,-480.0,0.00021917,3]
[379664892,1755364257848,-480.0,0.00021917,3]
[379664893,1755364257858,-480.0,0.00021917,3]
[379664895,1755364257868,-480.0,0.00021917,3]
[379664897,1755364257877,-480.0,0.00021917,3]
[379664899,1755364257888,-480.0,0.00021917,3]
[379664901,1755364257898,-897.76,0.00021917,3]
[379664902,1755364257908,-480.0,0.00021917,3]
[379664904,1755364257917,-460.44707013,0.00021917,3]
[379664906,1755364257927,-480.0,0.00021917,3]
[379664908,1755364257936,-480.0,0.00021917,3]
[379664910,1755364257945,-480.0,0.00021917,3]
[379664911,1755364257954,-480.0,0.00021917,3]
[379664913,1755364257964,-480.0,0.00021917,3]
[379664915,1755364257973,-480.0,0.00021917,3]
[379664917,1755364257982,-440.0,0.00021917,3]
[379664919,1755364257992,-985.54,0.00021917,3]
[379664921,1755364258001,-463.99224013,0.00021917,3]
[379664922,1755364258010,-480.0,0.00021917,3]
[379664924,1755364258020,-480.0,0.00021917,3]
[379664926,1755364258029,-1522.4,0.00021917,3]
[379664928,1755364258039,-480.0,0.00021917,3]
[379664930,1755364258047,-480.0,0.00021917,3]
[379664931,1755364258057,-480.0,0.00021917,3]
[379664933,1755364258067,-480.0,0.00021917,3]
[379664935,1755364258076,-1302.41,0.00021917,3]
[379664937,1755364258084,-613.35,0.00021917,3]
[379664939,1755364258094,-157.51942593,0.00021917,3]
[379664940,1755364258103,-480.0,0.00021917,3]
[379664942,1755364258113,-480.0,0.00021917,3]
[379664944,1755364258122,-480.0,0.00021917,3]
[379664946,1755364258131,-480.0,0.00021917,3]
[379664948,1755364258140,-480.0,0.00021917,3]
[379664949,1755364258148,-480.0,0.00021917,3]
[379664951,1755364258158,-460.0,0.00021917,3]
[379664953,1755364258168,-480.0,0.00021917,3]
[379664955,1755364258178,-480.0,0.00021917,3]
[379664957,1755364258187,-480.0,0.00021917,3]
[379664958,1755364258197,-480.0,0.00021917,3]
[379664960,1755364258206,-480.0,0.00021917,3]
[379664962,1755364258216,-624.73,0.00021917,3]
[379664964,1755364258225,-480.0,0.00021917,3]
[379664966,1755364258234,-460.63977758,0.00021917,3]
[379664967,1755364258243,-575.87,0.00021917,3]
[379664969,1755364258252,-480.0,0.00021917,3]
[379664971,1755364258261,-480.0,0.00021917,3]
[379664973,1755364258270,-480.0,0.00021917,3]
[379664975,1755364258279,-480.0,0.00021917,3]
[379664976,1755364258289,-480.0,0.00021917,3]
[379664978,1755364258298,-480.0,0.00021917,3]
[379664980,1755364258307,-480.0,0.00021917,3]
[379664982,1755364258316,-903.3,0.00021917,3]
[379664983,1755364258325,-480.0,0.00021917,3]
[379664985,1755364258334,-536.08,0.00021917,3]
[379664987,1755364258343,-720.64,0.00021917,3]
[379664989,1755364258353,-460.0,0.00021917,3]
[379664991,1755364258362,-480.0,0.00021917,3]
[379664992,1755364258371,-891.49,0.00021917,3]
[379664994,1755364258380,-480.0,0.00021917,3]
[379664996,1755364258390,-480.0,0.00021917,3]
[379664998,1755364258399,-480.0,0.00021917,3]
[379664999,1755364258408,-391.84257938,0.00021917,3]
[379665000,1755364258417,-4911.24,0.00021917,3]
[379665001,1755364258426,-480.0,0.00021917,3]
[379665002,1755364258435,-460.0,0.00021917,3]
[379665003,1755364258444,-480.0,0.00021917,3]
[379665004,1755364258453,-480.0,0.00021917,3]
[379665005,1755364258462,-480.0,0.00021917,3]
[379665006,1755364258470,-559.01632106,0.00021917,3]
[379665007,1755364258479,-480.0,0.00021917,3]
[379665008,1755364258488,-480.0,0.00021917,3]
[379665009,1755364258498,-480.0,0.00021917,3]
[379665010,1755364258507,-480.0,0.00021917,3]
[379665011,1755364258515,-480.0,0.00021917,3]
[379665012,1755364258524,-480.0,0.00021917,3]
[379665013,1755364258533,-480.0,0.00021917,3]
[379665014,1755364258541,-460.65444064,0.00021917,3]
[379665015,1755364258550,-956.99,0.00021917,3]
[379665016,1755364258559,-500.0,0.00021917,3]
[379665017,1755364258568,-460.0,0.00021917,3]
[379665018,1755364258577,-480.0,0.00021917,3]
[379665019,1755364258586,-500.0,0.00021917,3]
[379665020,1755364258595,-480.0,0.00021917,3]
[379665021,1755364258604,-519.65632826,0.00021917,3]
[379665022,1755364258613,-480.0,0.00021917,3]
[379665023,1755364258622,-612.89,0.00021917,3]
[379665024,1755364258630,-480.0,0.00021917,3]
[379665025,1755364258639,-480.0,0.00021917,3]
[379665026,1755364258648,-480.0,0.00021917,3]
[379665027,1755364258658,-151.0,0.00021917,2]
[379665028,1755364258667,-177.714947,0.00021917,2]
[379665029,1755364258676,-151.0,0.00021917,2]
[379665030,1755364258685,-151.0,0.00021917,2]
[379665031,1755364258694,-151.0,0.00021917,2]
[379665032,1755364258703,-151.0,0.00021917,2]
[379665033,1755364258712,-151.0,0.00021917,2]
[379665034,1755364258721,-151.0,0.00021917,2]
[379665035,1755364258730,-151.0,0.00021917,2]
[379665036,1755364258739,-263.063038,0.00021917,2]
[379665037,1755364258748,-151.0,0.00021917,3]
[379665038,1755364258757,-500.0,0.00021917,3]
[379665039,1755364258766,-500.0,0.00021917,3]
[379665040,1755364258775,-151.0,0.00021917,3]
[379665041,1755364258784,-462.1417622,0.00021917,3]
[379665042,1755364258792,-253.46814,0.00021917,2]
[379665043,1755364258802,-151.0,0.00021917,2]
[379665044,1755364258814,-259.213663,0.00021917,2]
[379665045,1755364258823,-259.213663,0.00021917,2]
[379665046,1755364258832,-259.213663,0.00021917,2]
[379665047,1755364258841,-259.213663,0.00021917,2]
[379665048,1755364258850,-160.0,0.00021917,3]
[379665049,1755364258859,-151.0,0.00021917,2]
[379665050,1755364258869,-500.0,0.00021917,2]
[379665051,1755364258880,-500.0,0.00021917,2]
[379665052,1755364258891,-151.0,0.00021917,2]
[379665053,1755364258900,-151.0,0.00021917,2]
[379665054,1755364258909,-271.247384,0.00021917,2]
[379665055,1755364258919,-271.247384,0.00021917,2]
[379665056,1755364258928,-271.247384,0.00021917,2]
[379665057,1755364258936,-271.247384,0.00021917,2]
[379665058,1755364258945,-271.247384,0.00021917,2]
[379665059,1755364258955,-271.247384,0.00021917,2]
[379665060,1755364258970,-425.44420476,0.00021917,2]
[379665061,1755364258979,-151.0,0.00021917,3]
[379665062,1755364258987,-500.0,0.00021917,3]
[379665063,1755364258996,-151.0,0.00021917,2]
[379665064,1755364259110,-151.0,0.00021917,2]
[379665065,1755364259137,-151.0,0.00021917,2]
[379665066,1755364259150,-151.0,0.00021917,3]
[379665067,1755364259160,-500.0,0.00021917,3]
[379665068,1755364259169,-151.0,0.00021917,3]
[379665069,1755364259178,-417.15472785,0.00021917,3]
[379665070,1755364259187,-500.0,0.00021917,3]
[379665071,1755364259201,-152.81787835,0.00021917,3]
[379665072,1755364259240,-151.44429891,0.00021917,3]
[379665073,1755364259268,-500.0,0.00021917,3]
[379665074,1755364259285,-500.0,0.00021917,3]
[379665075,1755364259296,-151.0,0.00021917,3]
[379665076,1755364259306,-500.0,0.00021917,3]
[379665077,1755364259317,-151.0,0.00021917,3]
[379665078,1755364259327,-259.9928,0.00021917,3]
[379665079,1755364259336,-151.0,0.00021917,3]
[379665080,1755364259346,-153.0,0.00021918,2]
[379665081,1755364259355,-153.0,0.00021918,2]
[379665082,1755364259365,-153.0,0.00021918,2]
[379665083,1755364259374,-153.0,0.00021918,2]
[379665084,1755364259383,-153.0,0.00021918,2]
[379665085,1755364259394,-251.23246902,0.00021932,2]
[379665086,1755364259403,-700.11544701,0.00021947,2]
[379665087,1755364259413,-168.0,0.0002195,2]
[379665088,1755364259422,-12665.10105876,0.00021957,2]
[379665089,1755364259432,-332.0,0.00021958,2]
[379665090,1755364259441,-1340.13,0.00021962,2]
[379665092,1755364259451,-480.0,0.00021962,2]
[379665093,1755364259461,-1318.97,0.00021962,2]
[379665094,1755364259471,-1581.86,0.00021962,2]
[379665095,1755364259480,-480.0,0.00021962,2]
[379665096,1755364259490,-460.0,0.00021972,3]
[379665098,1755364259499,-480.0,0.00021972,3]
[379665099,1755364259509,-480.0,0.00021972,3]
[379665100,1755364259519,-480.0,0.00021972,3]
[379665102,1755364259528,-480.0,0.00021972,3]
[379665103,1755364259538,-460.0,0.00021972,3]
[379665105,1755364259547,-1952.98,0.00021972,2]
[379665107,1755364259557,-480.0,0.00021972,2]
[379665109,1755364259566,-3356.41,0.00021972,2]
[379665111,1755364259576,-480.0,0.00021972,2]
[379665113,1755364259586,-1024.32,0.00021972,2]
[379665115,1755364259595,-500.0,0.00021973,2]
[379665117,1755364259605,-502.71641354,0.00021973,2]
[379665119,1755364259615,-500.0,0.00021973,2]
[379665121,1755364259634,-500.0,0.00021973,2]
[379665123,1755364259644,-500.0,0.00021973,2]
[379665126,1755364259654,-601.07143356,0.00021973,2]
[379665127,1755364259664,-500.0,0.00021973,2]
[379665129,1755364259673,-284.28935344,0.00021973,2]
[379665131,1755364259683,-500.0,0.00021973,2]
[379665133,1755364259696,-500.0,0.00021973,2]
[379665135,1755364259710,-151.0,0.00021973,7]
[379665137,1755364259720,-963.298618,0.00021973,7]
[379665139,1755364259730,-963.298618,0.00021973,7]
[379665141,1755364259739,-166.170921,0.00021973,7]
[379665143,1755364259749,-166.170921,0.00021973,7]
[379665145,1755364259758,-260.564567,0.00021973,7]
[379665147,1755364259768,-196.3,0.00021973,7]
[379665149,1755364259778,-196.3,0.00021973,7]
[379665151,1755364259787,-151.0,0.00021988,3]
[379665153,1755364259797,-8833.94,0.00022,7]
[379665155,1755364259808,-462.1417622,0.00022,7]
[379665157,1755364259820,-164.0,0.00022,2]
[379665160,1755364259830,-160.0,0.00022,7]
[379665161,1755364259839,-417.15472785,0.00022,7]
[379665163,1755364259850,-170.0,0.00022,2]
[379665165,1755364259859,-151.0,0.0002201,7]
[379665168,1755364259869,-151.128149,0.0002201,5]
[379665169,1755364259879,-788.43,0.00022055,2]
[379665171,1755364259889,-480.0,0.00022055,2]
[379665173,1755364259898,-480.0,0.00022055,2]
[379665176,1755364259909,-480.0,0.00022055,2]
[379665178,1755364259919,-2243.48,0.00022055,2]
[379665180,1755364259929,-480.0,0.00022055,2]
[379665182,1755364259939,-793.93,0.00022055,2]
[379665183,1755364259951,-480.0,0.00022055,2]
[379665185,1755364259960,-480.0,0.00022055,2]
[379665187,1755364259970,-730.21,0.00022055,2]
[379665189,1755364259980,-151.0,0.00022055,7]
[379665191,1755364259990,-1004.02,0.00022055,2]
[379665194,1755364260000,-480.0,0.00022055,2]
[379665196,1755364260011,-630.03,0.00022055,2]
[379665198,1755364260021,-1947.53,0.00022055,2]
[379665200,1755364260031,-480.0,0.00022055,2]
[379665202,1755364260042,-480.0,0.00022055,2]
[379665204,1755364260051,-480.0,0.00022055,2]
[379665206,1755364260061,-480.0,0.00022055,2]
[379665208,1755364260071,-480.0,0.00022055,2]
[379665210,1755364260080,-877.94,0.00022055,2]
[379665212,1755364260090,-480.0,0.00022055,2]
[379665214,1755364260100,-1067.96,0.00022055,2]
[379665216,1755364260110,-259.213663,0.00022055,7]
[379665218,1755364260119,-1192.59,0.00022055,2]
[379665220,1755364260129,-259.213663,0.00022055,7]
[379665222,1755364260139,-1406.16,0.00022055,2]
[379665224,1755364260149,-1124.76,0.00022055,2]
[379665226,1755364260158,-480.0,0.00022055,2]
[379665228,1755364260168,-480.0,0.00022055,2]
[379665230,1755364260177,-2241.5,0.00022055,2]
[379665232,1755364260187,-1556.45,0.00022055,2]
[379665234,1755364260197,-1563.78,0.00022055,2]
[379665236,1755364260206,-589.16,0.00022055,2]
[379665238,1755364260216,-480.0,0.00022055,2]
[379665240,1755364260226,-1347.09,0.00022055,2]
[379665242,1755364260235,-1962.21,0.00022055,2]
[379665244,1755364260244,-1711.21,0.00022055,2]
[379665246,1755364260254,-1161.09,0.00022055,2]
[379665248,1755364260263,-2569.75,0.00022055,2]
[379665250,1755364260272,-460.0,0.00022055,2]
[379665252,1755364260282,-572.88712675,0.00022055,2]
[379665254,1755364260292,-480.0,0.00022055,2]
[379665256,1755364260301,-480.0,0.00022055,2]
[379665258,1755364260311,-1129.93,0.00022056,2]
[379665260,1755364260320,-1129.93,0.00022056,2]
[379665262,1755364260333,-1562.48,0.00022056,2]
[379665264,1755364260342,-942.38,0.00022056,2]
[379665266,1755364260352,-1569.67,0.00022056,2]
[379665268,1755364260362,-480.0,0.00022056,2]
[379665270,1755364260371,-480.0,0.00022056,2]
[379665272,1755364260381,-480.0,0.00022056,2]
[379665274,1755364260390,-3637.8,0.00022056,2]
[379665276,1755364260400,-271.247384,0.00022056,7]
[379665278,1755364260410,-271.247392,0.00022056,7]
[379665280,1755364260421,-5249.45,0.00022056,2]
[379665282,1755364260430,-723.45,0.00022056,2]
[379665284,1755364260439,-470.80845691,0.00022056,2]
[379665286,1755364260448,-4083.81,0.00022056,2]
[379665288,1755364260458,-480.0,0.00022056,2]
[379665290,1755364260468,-9528.76,0.00022056,2]
[379665292,1755364260477,-1447.43,0.00022056,2]
[379665294,1755364260487,-480.0,0.00022056,2]
[379665296,1755364260496,-480.0,0.00022056,2]
[379665298,1755364260506,-763.44,0.00022056,2]
[379665300,1755364260515,-1798.09,0.00022056,2]
[379665302,1755364260524,-733.1,0.00022056,2]
[379665304,1755364260534,-797.36,0.00022056,2]
[379665306,1755364260543,-2218.25,0.00022056,2]
[379665308,1755364260553,-480.0,0.00022056,2]
[379665310,1755364260562,-480.0,0.00022057,2]
[379665312,1755364260572,-340.0,0.00022057,2]
[379665314,1755364260582,-480.0,0.00022057,2]
[379665316,1755364260591,-480.0,0.00022057,2]
[379665318,1755364260600,-480.0,0.00022057,2]
[379665320,1755364260609,-480.0,0.00022057,2]
[379665322,1755364260619,-1312.1,0.00022057,2]
[379665324,1755364260628,-480.0,0.00022057,2]
[379665326,1755364260637,-792.51,0.00022057,2]
[379665328,1755364260647,-572.29,0.00022057,2]
[379665330,1755364260656,-480.0,0.00022057,2]
[379665332,1755364260665,-690.14,0.00022057,2]
[379665334,1755364260675,-480.0,0.00022057,2]
[379665336,1755364260684,-480.0,0.00022057,2]
[379665338,1755364260693,-480.0,0.00022057,2]
[379665340,1755364260702,-480.0,0.00022057,2]
[379665342,1755364260712,-480.0,0.00022057,2]
[379665344,1755364260721,-480.0,0.00022057,2]
[379665346,1755364260731,-713.76,0.00022057,2]
[379665348,1755364260740,-480.0,0.00022057,2]
[379665350,1755364260750,-925.85,0.00022057,2]
[379665352,1755364260759,-635.34,0.00022057,2]
[379665354,1755364260769,-480.0,0.00022057,2]
[379665356,1755364260779,-440.0,0.00022057,2]
[379665358,1755364260788,-558.33,0.00022057,2]
[379665360,1755364260797,-480.0,0.00022057,2]
[379665362,1755364260808,-1465.47,0.00022057,2]
[379665364,1755364260818,-480.0,0.00022057,2]
[379665366,1755364260827,-480.0,0.00022057,2]
[379665368,1755364260836,-678.02,0.00022057,2]
[379665370,1755364260846,-480.0,0.00022057,2]
[379665372,1755364260855,-480.0,0.00022057,2]
[379665374,1755364260864,-480.0,0.00022057,2]
[379665376,1755364260873,-480.0,0.00022057,2]
[379665377,1755364260882,-480.0,0.00022057,2]
[379665379,1755364260892,-480.0,0.00022057,2]
[379665381,1755364260901,-480.0,0.00022057,2]
[379665383,1755364260911,-480.0,0.00022057,2]
[379665385,1755364260921,-16964.14,0.00022059,2]
[379665387,1755364260931,-2812.25,0.00022059,2]
[379665389,1755364260941,-12191.79,0.00022059,2]
[379665391,1755364260950,-480.0,0.00022071,2]
[379665393,1755364260959,-1156.62,0.00022071,2]
[379665395,1755364260968,-480.0,0.00022071,2]
[379665397,1755364260978,-480.0,0.00022071,2]
[379665399,1755364260987,-480.0,0.00022071,2]
[379665401,1755364260996,-480.0,0.00022071,2]
[379665403,1755364261006,-480.0,0.00022071,2]
[379665405,1755364261016,-495.22,0.00022071,2]
[379665407,1755364261025,-480.0,0.00022071,2]
[379665409,1755364261035,-480.0,0.00022071,2]
[379665411,1755364261044,-480.0,0.00022071,2]
[379665413,1755364261054,-576.61,0.00022071,2]
[379665415,1755364261063,-480.0,0.00022071,2]
[379665417,1755364261073,-480.0,0.00022071,2]
[379665419,1755364261082,-480.0,0.00022071,2]
[379665421,1755364261092,-480.0,0.00022071,2]
[379665423,1755364261102,-692.97,0.00022071,2]
[379665425,1755364261112,-480.0,0.00022071,2]
[379665427,1755364261121,-618.18,0.00022071,2]
[379665429,1755364261131,-416.47827855,0.00022071,2]
[379665431,1755364261141,-851.42,0.00022071,2]
[379665433,1755364261151,-1922.47,0.00022071,2]
[379665435,1755364261161,-2826.97,0.00022071,2]
[379665437,1755364261171,-480.0,0.00022071,2]
[379665439,1755364261180,-1610.57,0.00022071,2]
[379665441,1755364261189,-497.02,0.00022071,2]
[379665443,1755364261199,-480.0,0.00022071,2]
[379665445,1755364261208,-480.0,0.00022071,2]
[379665447,1755364261218,-387.25977469,0.00022071,2]
[379665449,1755364261229,-480.0,0.00022071,2]
[379665452,1755364261241,-480.0,0.00022071,2]
[379665453,1755364261251,-491.14,0.00022071,2]
[379665456,1755364261262,-460.0,0.00022071,2]
[379665457,1755364261273,-480.0,0.00022071,2]
[379665459,1755364261282,-480.0,0.00022071,2]
[379665461,1755364261291,-480.0,0.00022071,2]
[379665463,1755364261301,-460.0,0.00022071,2]
[379665465,1755364261311,-480.0,0.00022071,2]
[379665467,1755364261320,-632.56,0.00022071,2]
[379665469,1755364261329,-480.0,0.00022071,2]
[379665471,1755364261340,-460.0,0.00022071,2]
[379665485,1755364261470,-495.0,0.00022071,2]
[379665487,1755364261480,-480.0,0.00022071,2]
[379665489,1755364261489,-1176.84,0.00022071,2]
[379665491,1755364261499,-480.0,0.00022071,2]
[379665493,1755364261508,-480.0,0.00022071,2]
[379665495,1755364261518,-388.56070717,0.00022071,2]
[379665497,1755364261527,-480.0,0.00022071,2]
[379665499,1755364261536,-1869.58,0.00022071,2]
[379665501,1755364261545,-480.0,0.00022071,2]
[379665503,1755364261555,-701.16,0.00022071,2]
[379665505,1755364261564,-5928.89,0.00022071,2]
[379665507,1755364261573,-1399.68,0.00022071,2]
[379665509,1755364261582,-480.0,0.00022071,2]
[379665511,1755364261592,-1213.19,0.00022071,2]
[379665513,1755364261601,-1691.67,0.00022071,2]
[379665515,1755364261610,-890.39,0.00022071,2]
[379665517,1755364261619,-765.37,0.00022071,2]
[379665519,1755364261628,-480.0,0.00022071,2]
[379665521,1755364261637,-480.0,0.00022071,2]
[379665523,1755364261647,-480.0,0.00022071,2]
[379665525,1755364261656,-480.0,0.00022071,2]
[379665527,1755364261665,-480.0,0.00022071,2]
[379665529,1755364261675,-480.0,0.00022071,2]
[379665531,1755364261685,-1294.52,0.00022071,2]
[379665532,1755364261694,-480.0,0.00022071,2]
[379665534,1755364261703,-480.0,0.00022071,2]
[379665536,1755364261712,-480.0,0.00022071,2]
[379665538,1755364261721,-480.0,0.00022071,2]
[379665540,1755364261731,-1364.37,0.00022071,2]
[379665542,1755364261740,-1496.38,0.00022071,2]
[379665544,1755364261749,-480.0,0.00022071,2]
[379665546,1755364261759,-786.6,0.00022071,2]
[379665548,1755364261768,-480.0,0.00022071,2]
[379665550,1755364261778,-480.0,0.00022071,2]
[379665552,1755364261787,-480.0,0.00022071,2]
[379665553,1755364261796,-460.0,0.00022071,2]
[379665554,1755364261809,-480.0,0.00022071,2]
[379665555,1755364261818,-339.65063226,0.00022071,2]
[379665556,1755364261828,-480.0,0.00022071,2]
[379665557,1755364261837,-480.0,0.00022071,2]
[379665558,1755364261847,-480.0,0.00022071,2]
[379665559,1755364261856,-590.49129169,0.00022071,2]
[379665560,1755364261866,-168.0,0.00022088,2]
[379665561,1755364261875,-480.0,0.0002209,2]
[379665562,1755364261887,-500.0,0.0002209,2]
[379665563,1755364261896,-480.0,0.0002209,2]
[379665565,1755364261906,-480.0,0.0002209,2]
[379665567,1755364261915,-330.95542419,0.0002209,2]
[379665569,1755364261924,-480.0,0.0002209,2]
[379665571,1755364261934,-480.0,0.0002209,2]
[379665573,1755364261943,-480.0,0.0002209,2]
[379665575,1755364261952,-480.0,0.0002209,2]
[379665577,1755364261961,-480.0,0.0002209,2]
[379665579,1755364261970,-480.0,0.0002209,2]
[379665581,1755364261981,-728.32,0.0002209,2]
[379665583,1755364261990,-480.0,0.0002209,2]
[379665585,1755364261999,-480.0,0.0002209,2]
[379665587,1755364262009,-480.0,0.0002209,2]
[379665589,1755364262018,-480.0,0.0002209,2]
[379665591,1755364262028,-480.0,0.0002209,2]
[379665593,1755364262038,-4006.42,0.0002209,2]
[379665595,1755364262047,-480.0,0.0002209,2]
[379665597,1755364262057,-460.0,0.0002209,2]
[379665599,1755364262068,-1161.53,0.0002209,2]
[379665601,1755364262078,-525.61,0.0002209,2]
[379665603,1755364262088,-480.0,0.0002209,2]
[379665605,1755364262097,-480.0,0.0002209,2]
[379665607,1755364262107,-480.0,0.0002209,2]
[379665609,1755364262116,-4520.99,0.0002209,2]
[379665611,1755364262126,-502.34,0.0002209,2]
[379665613,1755364262136,-174.59512495,0.00022091,2]
[379665615,1755364262145,-211.07,0.00022096,30]
[379665617,1755364262156,-151.0,0.000221,8]
[379665619,1755364262166,-151.0,0.000221,7]
[379665621,1755364262175,-1000.0,0.000221,2]
[379665624,1755364262185,-183.74,0.000221,2]
[379665626,1755364262195,-168.0,0.00022116,2]
[379665628,1755364262204,-1000.0,0.00022121,2]
[379665630,1755364262214,-1000.0,0.00022121,2]
[379665632,1755364262223,-1659.54,0.00022136,2]
[379665634,1755364262234,-480.0,0.00022136,2]
[379665636,1755364262243,-647.63,0.00022136,2]
[379665638,1755364262253,-1818.07,0.00022136,2]
[379665640,1755364262263,-1496.06,0.00022136,2]
[379665642,1755364262272,-2148.33,0.00022136,2]
[379665644,1755364262282,-1653.82,0.00022136,2]
[379665645,1755364262291,-933.99,0.00022136,2]
[379665647,1755364262300,-16205.7,0.00022136,2]
[379665649,1755364262310,-480.0,0.00022143,2]
[379665651,1755364262320,-1177.43,0.00022143,2]
[379665653,1755364262330,-480.0,0.00022143,2]
[379665655,1755364262339,-480.0,0.00022143,2]